fUSD/lending_fUSD_20250119
["ID","MTS","AMOUNT","RATE_DAILY","PERIOD"]
[349544983,1737288643330,-64.16394275,0.00019178,2]
[349544984,1737288643342,-435.83605725,0.00019178,2]
[349544985,1737288643352,-500.0,0.00019178,2]
[349544986,1737288643362,-500.0,0.00019178,2]
[349544987,1737288643371,-500.0,0.00019178,2]
[349544988,1737288643380,-99.57569607,0.00019178,2]
[349544989,1737288643392,-416.5028028,0.00019178,2]
[349544990,1737288643402,-623.00274085,0.00019178,2]
[349544991,1737288643411,-500.0,0.00019178,2]
[349544992,1737288643420,-500.0,0.00019178,2]
[349544993,1737288643430,-519.34625926,0.00019178,2]
[349544994,1737288643439,-500.0,0.00019178,2]
[349544995,1737288643448,-275.83461059,0.00019178,2]
[349544996,1737288643456,-500.0,0.00019178,2]
[349544997,1737288643465,-507.05,0.00019178,2]
[349544998,1737288643476,-500.0,0.00019178,2]
[349544999,1737288643485,-529.7208488,0.00019178,2]
[349545000,1737288643495,-500.0,0.00019178,2]
[349545001,1737288643505,-258.36157831,0.00019178,2]
[349545002,1737288643514,-534.51993967,0.00019178,2]
[349545003,1737288643524,-500.0,0.00019178,2]
[349545004,1737288643533,-500.0,0.00019178,2]
[349545005,1737288643543,-530.94456267,0.00019178,2]
[349545006,1737288643552,-500.0,0.00019178,2]
[349545008,1737288643561,-500.0,0.00019178,2]
[349545010,1737288643570,-627.74,0.00019178,2]
[349545012,1737288643579,-500.0,0.00019178,2]
[349545013,1737288643588,-500.0,0.00019178,2]
[349545015,1737288643597,-500.0,0.00019178,2]
[349545016,1737288643606,-500.0,0.00019178,2]
[349545017,1737288643615,-500.0,0.00019178,2]
[349545018,1737288643625,-494.13492586,0.00019178,2]
[349545019,1737288643634,-500.0,0.00019178,2]
[349545020,1737288643643,-500.0,0.00019178,2]
[349545021,1737288643652,-500.0,0.00019178,2]
[349545022,1737288643661,-500.0,0.00019178,2]
[349545023,1737288643671,-500.0,0.00019178,2]
[349545024,1737288643680,-500.0,0.00019178,2]
[349545025,1737288643693,-500.0,0.00019178,2]
[349545026,1737288643701,-78.82720612,0.00019178,2]
[349545027,1737288643720,-359.999973,0.00019178,2]
[349545028,1737288643732,-61.17282088,0.00019178,2]
[349545029,1737288643742,-500.0,0.00019178,2]
[349545030,1737288643751,-350.0,0.00019178,2]
[349545031,1737288643760,-500.0,0.00019178,2]
[349545032,1737288643770,-500.0,0.00019178,2]
[349545033,1737288643779,-500.0,0.00019178,2]
[349545034,1737288643788,-518.34660319,0.00019178,2]
[349545035,1737288643798,-500.0,0.00019178,2]
[349545036,1737288643807,-500.0,0.00019178,2]
[349545037,1737288643815,-500.0,0.00019178,2]
[349545038,1737288643825,-500.0,0.00019178,2]
[349545039,1737288643834,-500.0,0.00019178,2]
[349545040,1737288643843,-372.98057363,0.00019178,2]
[349545055,1737288645514,-127.01942637,0.00019178,2]
[349545056,1737288645524,-500.0,0.00019178,2]
[349545057,1737288645534,-500.0,0.00019178,2]
[349545058,1737288645544,-367.02319684,0.00019178,2]
[349545059,1737288645553,-355.30737679,0.00019178,2]
[349545060,1737288645623,-144.69262321,0.00019178,2]
[349545061,1737288645633,-500.0,0.00019178,2]
[349545062,1737288645642,-403.10737679,0.00019178,2]
[349545063,1737288645654,-96.89262321,0.00019178,2]
[349545064,1737288645663,-510.58708937,0.00019178,2]
[349545065,1737288645672,-500.0,0.00019178,2]
[349545066,1737288645682,-632.50862155,0.00019178,2]
[349545067,1737288645695,-500.0,0.00019178,2]
[349545068,1737288645705,-578.81340966,0.00019178,2]
[349545069,1737288645715,-551.26715559,0.00019178,2]
[349545070,1737288645732,-515.33288316,0.00019178,2]
[349545071,1737288645741,-500.0,0.00019178,2]
[349545072,1737288645750,-500.0,0.00019178,2]
[349545073,1737288645760,-500.0,0.00019178,2]
[349545074,1737288645770,-508.68063596,0.00019178,2]
[349545075,1737288645779,-500.0,0.00019178,2]
[349545076,1737288645789,-500.0,0.00019178,2]
[349545077,1737288645799,-500.0,0.00019178,2]
[349545078,1737288645811,-200.0,0.00019178,2]
[349545079,1737288645821,-500.0,0.00019178,2]
[349545080,1737288645832,-500.0,0.00019178,2]
[349545081,1737288645842,-1515.48,0.00019178,2]
[349545082,1737288645852,-500.0,0.00019178,2]
[349545083,1737288645862,-500.0,0.00019178,2]
[349545084,1737288645872,-500.0,0.00019178,2]
[349545085,1737288645881,-500.0,0.00019178,2]
[349545086,1737288645891,-500.0,0.00019178,2]
[349545087,1737288645900,-611.64044305,0.00019178,2]
[349545088,1737288645910,-500.0,0.00019178,2]
[349545089,1737288645919,-500.0,0.00019178,2]
[349545090,1737288645929,-500.0,0.00019178,2]
[349545091,1737288645938,-500.0,0.00019178,2]
[349545092,1737288645948,-502.67729321,0.00019178,2]
[349545093,1737288645957,-588.46,0.00019178,2]
[349545094,1737288645967,-500.0,0.00019178,2]
[349545095,1737288645979,-500.0,0.00019178,2]
[349545096,1737288645989,-500.0,0.00019178,2]
[349545097,1737288645999,-500.0,0.00019178,2]
[349545098,1737288646009,-500.0,0.00019178,2]
[349545099,1737288646019,-500.0,0.00019178,2]
[349545100,1737288646029,-500.0,0.00019178,2]
[349545101,1737288646038,-500.0,0.00019178,2]
[349545102,1737288646047,-500.0,0.00019178,2]
[349545103,1737288646057,-500.0,0.00019178,2]
[349545104,1737288646067,-500.0,0.00019178,2]
[349545105,1737288646076,-500.0,0.00019178,2]
[349545106,1737288646086,-500.0,0.00019178,2]
[349545107,1737288646095,-500.0,0.00019178,2]
[349545108,1737288646105,-500.0,0.00019178,2]
[349545110,1737288646115,-500.0,0.00019178,2]
[349545111,1737288646124,-500.0,0.00019178,2]
[349545112,1737288646135,-528.00438146,0.00019178,2]
[349545113,1737288646144,-500.0,0.00019178,2]
[349545114,1737288646154,-500.0,0.00019178,2]
[349545115,1737288646165,-500.0,0.00019178,2]
[349545116,1737288646174,-500.0,0.00019178,2]
[349545117,1737288646184,-500.0,0.00019178,2]
[349545118,1737288646193,-500.0,0.00019178,2]
[349545119,1737288646202,-500.0,0.00019178,2]
[349545120,1737288646212,-500.0,0.00019178,2]
[349545121,1737288646225,-500.0,0.00019178,2]
[349545122,1737288646235,-500.0,0.00019178,2]
[349545123,1737288646245,-500.0,0.00019178,2]
[349545124,1737288646254,-500.0,0.00019178,2]
[349545125,1737288646264,-500.0,0.00019178,2]
[349545126,1737288646273,-500.0,0.00019178,2]
[349545127,1737288646282,-500.0,0.00019178,2]
[349545128,1737288646291,-500.0,0.00019178,2]
[349545129,1737288646301,-314.008464,0.00019178,2]
[349545130,1737288646315,-185.991536,0.00019178,2]
[349545131,1737288646325,-500.0,0.00019178,2]
[349545132,1737288646334,-500.0,0.00019178,2]
[349545133,1737288646344,-500.0,0.00019178,2]
[349545134,1737288646354,-500.0,0.00019178,2]
[349545135,1737288646364,-142.9561592,0.00019178,2]
[349545136,1737288646380,-357.0438408,0.00019178,2]
[349545137,1737288646390,-500.0,0.00019178,2]
[349545138,1737288646399,-500.0,0.00019178,2]
[349545139,1737288646409,-500.0,0.00019178,2]
[349545140,1737288646418,-500.0,0.00019178,2]
[349545141,1737288646427,-500.0,0.00019178,2]
[349545142,1737288646437,-511.5,0.00019178,2]
[349545143,1737288646446,-167.99691944,0.00019178,2]
[349545144,1737288646479,-332.00308056,0.00019178,2]
[349545145,1737288646488,-463.61730942,0.00019178,2]
[349545146,1737288646499,-36.38269058,0.00019178,2]
[349545147,1737288646509,-500.0,0.00019178,2]
[349545148,1737288646518,-224.29230596,0.00019178,2]
[349545149,1737288646531,-275.70769404,0.00019178,2]
[349545150,1737288646540,-425.17470409,0.00019178,2]
[349545151,1737288646550,-500.0,0.00019178,2]
[349545152,1737288646559,-500.0,0.00019178,2]
[349545153,1737288646569,-500.0,0.00019178,2]
[349545154,1737288646579,-500.0,0.00019178,2]
[349545155,1737288646588,-372.88494187,0.00019178,2]
[349545158,1737288878513,150.0,0.000125,2]
[349545163,1737289099137,151.67,0.00010137,2]
[349545167,1737289507859,371346.95164664,0.00012,2]
[349545168,1737289532108,-550.0,0.00015,2]
[349545169,1737289532130,-961.32,0.00016537,2]
[349545170,1737289532152,-261.365,0.0001658,2]
[349545171,1737289532173,-600.0,0.00017,2]
[349545172,1737289532194,-1000.0,0.00017624,2]
[349545173,1737289532216,-250.0,0.0001766,2]
[349545174,1737289532240,-251.78,0.00017663,2]
[349545175,1737289532262,-250.0,0.00017702,2]
[349545176,1737289532282,-200.0,0.00017723,2]
[349545177,1737289532304,-1000.0,0.00017729,2]
[349545178,1737289532324,-1579.66,0.00017793,2]
[349545179,1737289532346,-166.31,0.00017818,2]
[349545180,1737289532367,-881.7,0.00017882,2]
[349545181,1737289532388,-392.0,0.00017945,2]
[349545182,1737289532408,-250.0,0.00018,2]
[349545183,1737289532428,-867.71,0.00018082,2]
[349545184,1737289532449,-300.0,0.00018243,2]
[349545185,1737289532470,-23139.757967,0.00018244,2]
[349545186,1737289532794,-166.19,0.00018336,2]
[349545187,1737289532815,-250.0,0.00018394,2]
[349545188,1737289532837,-908.49,0.00018411,2]
[349545189,1737289532860,-876.66,0.00018411,2]
[349545190,1737289532882,-1000.0,0.00018422,2]
[349545191,1737289532902,-150.0,0.00018422,2]
[349545192,1737289532923,-166.19,0.00018428,2]
[349545193,1737289532946,-1000.0,0.00018452,2]
[349545194,1737289532968,-1000.0,0.00018468,2]
[349545195,1737289532991,-157.895,0.0001852,2]
[349545196,1737289533011,-151.1,0.00018551,2]
[349545197,1737289533033,-150.0,0.00018551,2]
[349545198,1737289533054,-441.05,0.00018551,2]
[349545199,1737289533077,-437.55,0.00018551,2]
[349545200,1737289533100,-150.0,0.00018551,2]
[349545201,1737289533124,-1000.0,0.00018638,2]
[349545202,1737289533146,-509.92055159,0.00018639,2]
[349545203,1737289533173,-867.71,0.00018751,2]
[349545204,1737289533202,-1000.0,0.00018782,2]
[349545205,1737289533227,-961.32,0.00018801,2]
[349545206,1737289533250,-1000.0,0.00018843,2]
[349545207,1737289533273,-1000.0,0.00018901,2]
[349545208,1737289533296,-907.397,0.00018924,2]
[349545209,1737289533318,-438.33,0.00018924,2]
[349545210,1737289533343,-1000.0,0.0001894,2]
[349545211,1737289533367,-250.0,0.00019,2]
[349545212,1737289533389,-650.0,0.00019,2]
[349545213,1737289533412,-96.11099264,0.00019,2]
[349545214,1737289580443,-260.93396686,0.000129,7]
[349545215,1737289592114,-260.93514107,0.00018,3]
[349545216,1737289634124,-599.80714823,0.00018,3]
[349545223,1737289758647,-490.0,0.00016104,2]
[349545224,1737289760133,-224.04365305,0.00016104,2]
[349545244,1737289831636,-151.13634695,0.00016104,2]
[349545246,1737289831646,-150.0,0.00017865,2]
[349545247,1737289831656,-445.61213266,0.00018,3]
[349545248,1737289831665,-84.78352039,0.00018057,2]
[349545249,1737289831797,-115.21647961,0.00018057,2]
[349545250,1737289831807,-150.0,0.00018084,2]
[349545251,1737289831817,-150.0,0.00018108,2]
[349545252,1737289831827,-150.0,0.00018121,2]
[349545253,1737289831836,-329.45,0.00018179,2]
[349545254,1737289831846,-150.0,0.0001825,2]
[349545255,1737289831856,-250.0,0.00018252,2]
[349545256,1737289831866,-150.0,0.00018296,2]
[349545257,1737289831875,-865.18,0.00018368,2]
[349545258,1737289831885,-150.0,0.00018384,2]
[349545259,1737289831895,-150.0,0.00018434,2]
[349545260,1737289831904,-200.0,0.000185,6]
[349545261,1737289831914,-150.0,0.00018514,2]
[349545262,1737289831923,-300.0,0.00018514,2]
[349545263,1737289831932,-150.0,0.00018514,2]
[349545264,1737289831941,-150.0,0.00018514,2]
[349545265,1737289831951,-150.0,0.000186,2]
[349545266,1737289831961,-150.0,0.000186,2]
[349545267,1737289831971,-500.0,0.000186,6]
[349545268,1737289831981,-800.0,0.000187,6]
[349545269,1737289831990,-150.0,0.00018732,2]
[349545270,1737289831999,-150.0,0.00018743,2]
[349545271,1737289832009,-150.0,0.00018776,2]
[349545272,1737289832022,-1100.0,0.000188,6]
[349545273,1737289832031,-16449.53482762,0.000189,2]
[349545274,1737289832090,-0.30084946,0.000189,2]
[349545275,1737289832123,-1727.4936,0.000189,2]
[349545276,1737289832156,-150.0,0.00018427,2]
[349545278,1737289832166,-7378.1226801,0.000189,2]
[349545280,1737289832175,-150.0,0.000189,2]
[349545282,1737289832184,-150.0,0.000189,2]
[349545284,1737289832194,-1400.0,0.000189,6]
[349545286,1737289832204,-203.94393132,0.000189,2]
[349545287,1737289832213,-150.0,0.00018935,2]
[349545288,1737289832222,-150.0,0.00018967,2]
[349545289,1737289832233,-3000.0,0.0001899,2]
[349545290,1737289832242,-10480.39493896,0.00019,7]
[349545292,1737289832252,-22312.18223831,0.00019,2]
[349545293,1737289832261,-150.0,0.00019019,2]
[349545294,1737289832271,-150.0,0.00019025,2]
[349545295,1737289832280,-150.0,0.00019033,2]
[349545296,1737289832290,-150.0,0.00019073,2]
[349545297,1737289832299,-17801.33767923,0.00019077,2]
[349545298,1737289832308,-740.96315471,0.00019077,2]
[349545299,1737289832318,-2483.9889,0.00019078,2]
[349545300,1737289832331,-785.6598,0.00019078,2]
[349545301,1737289832341,-506.4708,0.00019078,2]
[349545302,1737289832350,-184.01536533,0.00019078,2]
[349545303,1737289832363,-36134.184,0.00019078,2]
[349545304,1737289832372,-9279.2825,0.00019078,2]
[349545305,1737289832382,-150.0,0.00019085,2]
[349545306,1737289832392,-175.7169261,0.00019104,2]
[349545307,1737289832402,-966.1897079,0.0001911,2]
[349545308,1737289832412,-1000.0,0.00019131,2]
[349545309,1737289832421,-184.01536528,0.00019169,2]
[349545310,1737289832431,-500.0,0.00019177,2]
[349545311,1737289832440,-257.39629573,0.00019177,2]
[349545312,1737289832450,-500.0,0.00019177,2]
[349545313,1737289832460,-500.0,0.00019177,2]
[349545314,1737289832470,-290.61956281,0.00019177,2]
[349545315,1737289832479,-500.0,0.00019177,2]
[349545316,1737289832489,-174.48188513,0.00019178,2]
[349545317,1737289832498,-173.49254,0.00019178,2]
[349545318,1737289832508,-159.534965,0.00019178,2]
[349545319,1737289832518,-167.824783,0.00019178,2]
[349545320,1737289832527,-502.72135558,0.00019178,2]
[349545321,1737289832538,-500.0,0.00019178,2]
[349545322,1737289832547,-500.0,0.00019178,2]
[349545323,1737289832557,-500.0,0.00019178,2]
[349545324,1737289832567,-500.0,0.00019178,2]
[349545325,1737289832576,-500.0,0.00019178,2]
[349545326,1737289832586,-500.0,0.00019178,2]
[349545327,1737289832595,-500.0,0.00019178,2]
[349545328,1737289832606,-500.0,0.00019178,2]
[349545329,1737289832616,-500.0,0.00019178,2]
[349545330,1737289832625,-512.11,0.00019178,2]
[349545331,1737289832634,-500.0,0.00019178,2]
[349545332,1737289832644,-500.0,0.00019178,2]
[349545333,1737289832653,-503.04942176,0.00019178,2]
[349545334,1737289832663,-500.0,0.00019178,2]
[349545335,1737289832672,-500.0,0.00019178,2]
[349545336,1737289832682,-500.0,0.00019178,2]
[349545337,1737289832691,-500.0,0.00019178,2]
[349545338,1737289832701,-500.0,0.00019178,2]
[349545339,1737289832711,-500.0,0.00019178,2]
[349545340,1737289832720,-500.0,0.00019178,2]
[349545341,1737289832730,-500.0,0.00019178,2]
[349545342,1737289832739,-500.0,0.00019178,2]
[349545343,1737289832749,-500.0,0.00019178,2]
[349545344,1737289832759,-527.99389173,0.00019178,2]
[349545345,1737289832768,-500.0,0.00019178,2]
[349545346,1737289832778,-500.0,0.00019178,2]
[349545347,1737289832787,-500.0,0.00019178,2]
[349545348,1737289832797,-500.0,0.00019178,2]
[349545349,1737289832806,-500.0,0.00019178,2]
[349545350,1737289832815,-500.0,0.00019178,2]
[349545351,1737289832824,-503.52999574,0.00019178,2]
[349545352,1737289832834,-500.0,0.00019178,2]
[349545353,1737289832843,-500.0,0.00019178,2]
[349545354,1737289832852,-500.0,0.00019178,2]
[349545355,1737289832866,-500.0,0.00019178,2]
[349545356,1737289832876,-507.54167314,0.00019178,2]
[349545357,1737289832885,-500.0,0.00019178,2]
[349545358,1737289832895,-408.23564314,0.00019178,2]
[349545368,1737289837631,-150.0,0.00018305,2]
[349545369,1737289837641,-150.0,0.00018477,2]
[349545370,1737289837650,-150.0,0.00018802,2]
[349545371,1737289837660,-91.76435686,0.00019178,2]
[349545372,1737289837670,-500.0,0.00019178,2]
[349545373,1737289837679,-500.0,0.00019178,2]
[349545374,1737289837689,-500.0,0.00019178,2]
[349545375,1737289837698,-500.0,0.00019178,2]
[349545376,1737289837708,-500.0,0.00019178,2]
[349545377,1737289837718,-500.0,0.00019178,2]
[349545378,1737289837728,-500.0,0.00019178,2]
[349545379,1737289837737,-500.0,0.00019178,2]
[349545380,1737289837746,-500.0,0.00019178,2]
[349545381,1737289837755,-177.73564314,0.00019178,2]
[349545382,1737289837792,-150.0,0.00018373,2]
[349545383,1737289837801,-150.0,0.00018434,2]
[349545384,1737289837810,-157.44792853,0.00019178,2]
[349545385,1737289837819,-500.0,0.00019178,2]
[349545386,1737289837829,-500.0,0.00019178,2]
[349545387,1737289837838,-94.99366219,0.00019178,2]
[349545388,1737289837849,-405.00633781,0.00019178,2]
[349545389,1737289837860,-528.18674314,0.00019178,2]
[349545390,1737289837869,-589.97817936,0.00019178,2]
[349545391,1737289837878,-500.0,0.00019178,2]
[349545392,1737289837887,-500.0,0.00019178,2]
[349545393,1737289837896,-500.0,0.00019178,2]
[349545394,1737289837906,-500.0,0.00019178,2]
[349545395,1737289837915,-500.0,0.00019178,2]
[349545396,1737289837924,-500.0,0.00019178,2]
[349545397,1737289837934,-500.0,0.00019178,2]
[349545398,1737289837943,-499.78919968,0.00019178,2]
[349545399,1737289837955,-30.54598375,0.00019178,2]
[349545400,1737289837965,-500.0,0.00019178,2]
[349545401,1737289837975,-500.0,0.00019178,2]
[349545402,1737289837985,-514.81,0.00019178,2]
[349545403,1737289837995,-500.0,0.00019178,2]
[349545404,1737289838004,-500.0,0.00019178,2]
[349545405,1737289838014,-500.0,0.00019178,2]
[349545406,1737289838026,-500.0,0.00019178,2]
[349545407,1737289838037,-500.0,0.00019178,2]
[349545408,1737289838046,-500.0,0.00019178,2]
[349545409,1737289838056,-500.0,0.00019178,2]
[349545410,1737289838067,-500.0,0.00019178,2]
[349545411,1737289838077,-518.89268845,0.00019178,2]
[349545412,1737289838087,-723.33,0.00019178,2]
[349545413,1737289838097,-500.0,0.00019178,2]
[349545414,1737289838114,-500.0,0.00019178,2]
[349545415,1737289838126,-500.0,0.00019178,2]
[349545416,1737289838136,-500.0,0.00019178,2]
[349545417,1737289838145,-209.90547529,0.00019178,2]
[349545418,1737289838155,-500.0,0.00019178,2]
[349545419,1737289838165,-500.0,0.00019178,2]
[349545420,1737289838175,-500.0,0.00019178,2]
[349545421,1737289838185,-500.0,0.00019178,2]
[349545422,1737289838194,-500.0,0.00019178,2]
[349545423,1737289838204,-500.0,0.00019178,2]
[349545424,1737289838214,-500.0,0.00019178,2]
[349545425,1737289838224,-500.0,0.00019178,2]
[349545426,1737289838234,-500.0,0.00019178,2]
[349545427,1737289838243,-500.0,0.00019178,2]
[349545428,1737289838253,-500.0,0.00019178,2]
[349545429,1737289838263,-500.0,0.00019178,2]
[349545430,1737289838272,-500.0,0.00019178,2]
[349545431,1737289838282,-500.0,0.00019178,2]
[349545432,1737289838292,-500.0,0.00019178,2]
[349545433,1737289838301,-500.0,0.00019178,2]
[349545434,1737289838311,-500.0,0.00019178,2]
[349545435,1737289838321,-500.0,0.00019178,2]
[349545436,1737289838331,-500.0,0.00019178,2]
[349545437,1737289838340,-500.0,0.00019178,2]
[349545438,1737289838350,-500.0,0.00019178,2]
[349545439,1737289838364,-500.0,0.00019178,2]
[349545440,1737289838373,-500.0,0.00019178,2]
[349545441,1737289838383,-500.0,0.00019178,2]
[349545442,1737289838392,-500.0,0.00019178,2]
[349545443,1737289838402,-500.0,0.00019178,2]
[349545444,1737289838412,-500.0,0.00019178,2]
[349545445,1737289838422,-500.0,0.00019178,2]
[349545446,1737289838431,-500.0,0.00019178,2]
[349545447,1737289838441,-500.0,0.00019178,2]
[349545448,1737289838451,-500.0,0.00019178,2]
[349545449,1737289838461,-500.0,0.00019178,2]
[349545450,1737289838471,-500.0,0.00019178,2]
[349545451,1737289838480,-563.94,0.00019178,2]
[349545452,1737289838490,-500.0,0.00019178,2]
[349545453,1737289838499,-501.27662863,0.00019178,2]
[349545454,1737289838509,-500.0,0.00019178,2]
[349545455,1737289838519,-500.0,0.00019178,2]
[349545456,1737289838528,-501.73774831,0.00019178,2]
[349545457,1737289838538,-500.0,0.00019178,2]
[349545458,1737289838547,-500.0,0.00019178,2]
[349545459,1737289838556,-299.41875804,0.00019178,2]
[349545460,1737289838566,-500.0,0.00019178,2]
[349545461,1737289838575,-500.0,0.00019178,2]
[349545462,1737289838585,-500.0,0.00019178,2]
[349545463,1737289838594,-500.0,0.00019178,2]
[349545464,1737289838604,-500.0,0.00019178,2]
[349545465,1737289838615,-500.0,0.00019178,2]
[349545466,1737289838625,-500.0,0.00019178,2]
[349545467,1737289838634,-500.0,0.00019178,2]
[349545468,1737289838644,-500.0,0.00019178,2]
[349545469,1737289838653,-500.0,0.00019178,2]
[349545470,1737289838662,-500.0,0.00019178,2]
[349545471,1737289838672,-500.0,0.00019178,2]
[349545472,1737289838681,-500.0,0.00019178,2]
[349545473,1737289838691,-500.0,0.00019178,2]
[349545474,1737289838700,-500.0,0.00019178,2]
[349545475,1737289838709,-500.0,0.00019178,2]
[349545476,1737289838718,-500.0,0.00019178,2]
[349545477,1737289838727,-500.0,0.00019178,2]
[349545478,1737289838737,-500.0,0.00019178,2]
[349545479,1737289838746,-200.0,0.00019178,2]
[349545480,1737289838755,-500.0,0.00019178,2]
[349545481,1737289838765,-500.0,0.00019178,2]
[349545482,1737289838774,-503.08285058,0.00019178,2]
[349545483,1737289838783,-500.0,0.00019178,2]
[349545484,1737289838792,-500.0,0.00019178,2]
[349545485,1737289838802,-500.0,0.00019178,2]
[349545486,1737289838811,-500.0,0.00019178,2]
[349545487,1737289838822,-500.0,0.00019178,2]
[349545488,1737289838831,-500.0,0.00019178,2]
[349545489,1737289838840,-500.0,0.00019178,2]
[349545490,1737289838849,-500.0,0.00019178,2]
[349545491,1737289838860,-500.0,0.00019178,2]
[349545492,1737289838869,-500.0,0.00019178,2]
[349545493,1737289838877,-500.0,0.00019178,2]
[349545494,1737289838887,-500.0,0.00019178,2]
[349545495,1737289838897,-500.0,0.00019178,2]
[349545496,1737289838907,-500.0,0.00019178,2]
[349545497,1737289838916,-500.0,0.00019178,2]
[349545498,1737289838925,-500.0,0.00019178,2]
[349545499,1737289838935,-500.0,0.00019178,2]
[349545500,1737289838944,-500.0,0.00019178,2]
[349545501,1737289838953,-500.0,0.00019178,2]
[349545502,1737289838962,-500.0,0.00019178,2]
[349545503,1737289838971,-500.0,0.00019178,2]
[349545504,1737289838981,-500.0,0.00019178,2]
[349545505,1737289838990,-500.0,0.00019178,2]
[349545506,1737289838999,-500.0,0.00019178,2]
[349545507,1737289839010,-500.0,0.00019178,2]
[349545508,1737289839023,-500.0,0.00019178,2]
[349545509,1737289839033,-500.0,0.00019178,2]
[349545510,1737289839043,-500.0,0.00019178,2]
[349545511,1737289839052,-500.0,0.00019178,2]
[349545512,1737289839063,-500.0,0.00019178,2]
[349545513,1737289839072,-500.0,0.00019178,2]
[349545514,1737289839081,-203.98679764,0.00019178,2]
[349545515,1737289839110,-296.01320236,0.00019178,2]
[349545516,1737289839120,-500.0,0.00019178,2]
[349545517,1737289839129,-500.0,0.00019178,2]
[349545518,1737289839138,-500.0,0.00019178,2]
[349545519,1737289839147,-438.3547514,0.00019178,2]
[349545520,1737289839159,-61.6452486,0.00019178,2]
[349545521,1737289839168,-500.0,0.00019178,2]
[349545522,1737289839178,-500.0,0.00019178,2]
[349545523,1737289839187,-500.0,0.00019178,2]
[349545524,1737289839196,-974.68,0.00019178,2]
[349545525,1737289839205,-36.42141596,0.00019178,2]
[349545527,1737289839761,-150.0,0.00019066,2]
[349545528,1737289839770,-129.56,0.00019178,2]
[349545529,1737289839869,-150.0,0.00018266,2]
[349545530,1737289839878,-334.01858404,0.00019178,2]
[349545531,1737289839887,-338.62619317,0.00019178,2]
[349545532,1737289839896,-500.0,0.00019178,2]
[349545533,1737289839905,-500.0,0.00019178,2]
[349545534,1737289839916,-506.11100245,0.00019178,2]
[349545535,1737289839927,-500.0,0.00019178,2]
[349545536,1737289839939,-514.23,0.00019178,2]
[349545537,1737289839950,-770.8,0.00019178,2]
[349545538,1737289839962,-500.0,0.00019178,2]
[349545539,1737289839970,-500.0,0.00019178,2]
[349545540,1737289839980,-719.9,0.00019178,2]
[349545541,1737289839990,-500.0,0.00019178,2]
[349545542,1737289839998,-12.52983495,0.00019178,2]
[349545543,1737289840040,-487.47016505,0.00019178,2]
[349545544,1737289840049,-500.0,0.00019178,2]
[349545545,1737289840060,-500.0,0.00019178,2]
[349545546,1737289840069,-500.0,0.00019178,2]
[349545547,1737289840078,-500.0,0.00019178,2]
[349545548,1737289840087,-500.0,0.00019178,2]
[349545549,1737289840096,-500.0,0.00019178,2]
[349545550,1737289840107,-500.0,0.00019178,2]
[349545551,1737289840117,-500.0,0.00019178,2]
[349545552,1737289840125,-500.0,0.00019178,2]